[Event "WTCC-50 2018"]
[Site "Radebeul"]
[Date "2018.07.11"]
[Round "5"]
[White "Kempter, Ronald"]
[Black "Bischoff, Klaus"]
[Result "0-1"]
[ECO "A05"]
[WhiteElo "2233"]
[BlackElo "2510"]
[Annotator "ChessBase"]
[PlyCount "80"]
[EventDate "2018.07.07"]
[EventType "team-tourn"]
[EventCountry "GER"]
[SourceTitle "playchess.com"]
[Source "ChessBase"]
[SourceQuality "1"]
[TimeControl "40/5400+30:1800+30"]

1. Nf3 {[%emt 0:00:00]} Nf6 {[%emt 0:00:00]} 2. g3 {[%emt 0:00:00]} d5 {[%emt 0:00:32]} 3. Bg2 {[%emt 0:00:15]} c6 {[%emt 0:00:30]} 4. O-O {[%emt 0:00:45]} Nbd7 {[%emt 0:00:52]} 5. d4 {[%emt 0:02:05]} e6 {[%emt 0:01:32]} 6. b3 {[%emt 0:03:26]} b5 {[%emt 0:03:06]} 7. c4 {[%emt 0:02:35]} Be7 {[%emt 0:01:44]} 8. Qc2 {[%emt 0:01:52]} O-O {[%emt 0:01:35]} 9. Nbd2 {[%emt 0:03:38]} bxc4 {[%emt 0:03:10]} 10. bxc4 {[%emt 0:02:18]} Ba6 {[%emt 0:01:47]} 11. Re1 {[%emt 0:05:59]} c5 {[%emt 0:09:09]} 12. e4 {[%emt 0:21:31]} dxc4 {[%emt 0:06:00]} 13. Qa4 {[%emt 0:16:39]} Qc8 {[%emt 0:09:55]} 14. Nxc4 {[%emt 0:11:02]} cxd4 {[%emt 0:00:43]} 15. Nce5 {[%emt 0:02:57]} Nc5 {[%emt 0:20:09]} 16. Qxd4 {[%emt 0:11:09]} Ncxe4 {[%emt 0:00:29]} 17. Be3 {[%emt 0:04:12]} Rd8 {[%emt 0:01:04]} 18. Qa4 {[%emt 0:00:57]} Nc3 {[%emt 0:01:06]} 19. Qc2 {[%emt 0:02:18]} Ncd5 {[%emt 0:03:37]} 20. Qa4 {[%emt 0:02:23]} Nc3 {[%emt 0:01:33]} 21. Qc2 {[%emt 0:00:06]} Nfd5 {[%emt 0:00:13]} 22. Nxf7 {[%emt 0:01:18]} Kxf7 {[%emt 0:00:37]} 23. Qxh7 {[%emt 0:00:22]} Bf6 {[%emt 0:00:39]} 24. Ng5+ {[%emt 0:01:46]} Bxg5 {[%emt 0:00:08]} 25. Qh5+ {[%emt 0:00:17]} Kg8 {[%emt 0:00:17]} 26. Bxg5 {[%emt 0:00:46]} Re8 {[%emt 0:00:49]} 27. Rac1 {[%emt 0:00:24]} Qd7 {[%emt 0:00:39]} 28. Bd2 {[%emt 0:01:57]} Nf6 {[%emt 0:03:04]} 29. Qg5 {[%emt 0:00:29]} Ncd5 {[%emt 0:00:09]} 30. Re5 {[%emt 0:00:47]} Bd3 {[%emt 0:03:31]} 31. Rce1 {[%emt 0:00:31]} Bf5 {[%emt 0:00:36]} 32. h3 {[%emt 0:00:36]} Rac8 {[%emt 0:00:25]} 33. g4 {[%emt 0:00:29]} Bh7 {[%emt 0:00:11]} 34. Qh4 {[%emt 0:00:24]} Qf7 {[%emt 0:01:13]} 35. g5 {[%emt 0:00:41]} Nd7 {[%emt 0:00:47]} 36. R5e2 {[%emt 0:00:34]} Nc5 {[%emt 0:00:39]} 37. Qd4 {[%emt 0:00:25]} Red8 {[%emt 0:01:25]} 38. Ba5 {[%emt 0:00:25]} Nb6 {[%emt 0:00:47]} 39. Qg4 {[%emt 0:00:26]} Bf5 {[%emt 0:00:50]} 40. Qh4 {[%emt 0:00:35]} Nd3 {[%emt 0:00:31]} 0-1

[Event "WTCC-50 2018"]
[Site "Radebeul"]
[Date "2018.07.11"]
[Round "5"]
[White "Bruch, Jochen"]
[Black "Cummings, David H"]
[Result "1-0"]
[ECO "A08"]
[WhiteElo "2222"]
[BlackElo "2336"]
[Annotator "ChessBase"]
[PlyCount "117"]
[EventDate "2018.07.07"]
[EventType "team-tourn"]
[EventCountry "GER"]
[SourceTitle "playchess.com"]
[Source "ChessBase"]
[SourceQuality "1"]
[TimeControl "40/5400+30:1800+30"]

1. Nf3 {[%emt 0:00:00]} d5 {[%emt 0:00:00]} 2. g3 {[%emt 0:00:00]} Nf6 {[%emt 0:00:02]} 3. Bg2 {[%emt 0:00:00]} e6 {[%emt 0:00:18]} 4. O-O {[%emt 0:00:00]} c5 {[%emt 0:00:06]} 5. d3 {[%emt 0:00:00]} Nc6 {[%emt 0:00:13]} 6. Nbd2 {[%emt 0:00:00]} Be7 {[%emt 0:00:42]} 7. e4 {[%emt 0:00:00]} O-O {[%emt 0:00:10]} 8. Re1 {[%emt 0:00:00]} b5 {[%emt 0:00:37]} 9. e5 {[%emt 0:00:36]} Nd7 {[%emt 0:00:07]} 10. Nf1 {[%emt 0:00:08]} Bb7 {[%emt 0:00:34]} 11. h4 {[%emt 0:00:03]} Qc7 {[%emt 0:00:22]} 12. Bf4 {[%emt 0:00:02]} Rfc8 {[%emt 0:01:28]} 13. h5 {[%emt 0:00:34]} h6 {[%emt 0:00:29]} 14. N1h2 {[%emt 0:00:24]} Qd8 {[%emt 0:01:00]} 15. Ng4 {[%emt 0:02:15]} Bf8 {[%emt 0:00:55]} 16. c3 {[%emt 0:05:30]} a5 {[%emt 0:02:07]} 17. Qd2 {[%emt 0:02:33]} b4 {[%emt 0:02:06]} 18. c4 {[%emt 0:02:54]} Nb6 {[%emt 0:02:31]} 19. Qc1 {[%emt 0:06:21]} Ra7 {[%emt 0:06:05]} 20. Ne3 {[%emt 0:05:39]} Nd4 {[%emt 0:03:59]} 21. Nd2 {[%emt 0:08:06]} a4 {[%emt 0:09:14]} 22. Qd1 {[%emt 0:07:34]} Kh8 {[%emt 0:14:31]} 23. Rc1 {[%emt 0:04:27]} dxc4 {[%emt 0:15:14]} 24. dxc4 {[%emt 0:01:27]} Bxg2 {[%emt 0:00:10]} 25. Kxg2 {[%emt 0:00:24]} Rd7 {[%emt 0:00:21]} 26. Qg4 {[%emt 0:02:27]} Qc7 {[%emt 0:02:02]} 27. Ne4 {[%emt 0:06:32]} Qc6 {[%emt 0:00:16]} 28. f3 {[%emt 0:00:54]} Rcd8 {[%emt 0:00:48]} 29. Qh3 {[%emt 0:10:42]} b3 {[%emt 0:05:33]} 30. a3 {[%emt 0:02:23]} Nxf3 {[%emt 0:06:02]} 31. Kxf3 {[%emt 0:02:26]} Rd3 {[%emt 0:08:20]} 32. Qh1 {[%emt 0:06:54]} f5 {[%emt 0:06:02]} 33. exf6 {[%emt 0:01:46]} gxf6 {[%emt 0:00:09]} 34. Ke2 {[%emt 0:04:00]} f5 {[%emt 0:03:35]} 35. Nf2 {[%emt 0:02:47]} Rd2+ {[%emt 0:00:25]} 36. Kf1 {[%emt 0:00:02]} Qd7 {[%emt 0:06:05]} 37. Rcd1 {[%emt 0:05:44]} Qf7 {[%emt 0:01:40]} 38. Qc6 {[%emt 0:07:40]} Rxd1 {[%emt 0:00:32]} 39. Rxd1 {[%emt 0:01:07]} Rxd1+ {[%emt 0:00:17]} 40. Nfxd1 {[%emt 0:00:35]} Nd7 {[%emt 0:00:42]} 41. Bd6 {[%emt 0:33:12]} Bg7 {[%emt 0:33:45]} 42. Qxa4 {[%emt 0:00:00]} Ne5 {[%emt 0:00:00]} 43. Qxb3 {[%emt 0:00:00]} Nc6 {[%emt 0:00:00]} 44. Qb6 {[%emt 0:00:00]} Nd4 {[%emt 0:00:00]} 45. Bxc5 {[%emt 0:00:00]} Nf3 {[%emt 0:00:00]} 46. Kf2 {[%emt 0:00:00]} Ng5 {[%emt 0:00:00]} 47. Ke2 {[%emt 0:00:05]} Qxh5+ {[%emt 0:00:00]} 48. Kd3 {[%emt 0:00:03]} Qf3 {[%emt 0:00:31]} 49. Qb8+ {[%emt 0:01:45]} Kh7 {[%emt 0:00:06]} 50. Qf4 {[%emt 0:01:29]} Qb7 {[%emt 0:01:03]} 51. Kc2 {[%emt 0:00:34]} Ne4 {[%emt 0:00:16]} 52. Bb4 {[%emt 0:00:11]} Qd7 {[%emt 0:00:41]} 53. g4 {[%emt 0:00:14]} Ng5 {[%emt 0:02:39]} 54. gxf5 {[%emt 0:00:17]} e5 {[%emt 0:00:06]} 55. Qg4 {[%emt 0:00:24]} e4 {[%emt 0:00:13]} 56. Nd5 {[%emt 0:00:32]} Qc6 {[%emt 0:01:32]} 57. N1e3 {[%emt 0:00:22]} Qa4+ {[%emt 0:00:25]} 58. b3 {[%emt 0:00:07]} Qe8 {[%emt 0:00:53]} 59. f6 {[%emt 0:00:16]} 1-0

[Event "WTCC-50 2018"]
[Site "Radebeul"]
[Date "2018.07.11"]
[Round "5"]
[White "Schoeneberg, Manfred"]
[Black "Brueggemann, Joachim"]
[Result "1/2-1/2"]
[ECO "B46"]
[WhiteElo "2199"]
[BlackElo "2293"]
[Annotator "NA"]
[PlyCount "21"]
[EventDate "2018.07.07"]
[EventType "team-tourn"]
[EventCountry "GER"]
[SourceTitle "playchess.com"]
[Source "ChessBase"]
[SourceQuality "1"]
[TimeControl "40/5400+30:1800+30"]

1. e4 {[%emt 0:00:00]} c5 {[%emt 0:00:00]} 2. Nc3 {[%emt 0:00:22]} Nc6 {[%emt 0:00:00]} 3. Nf3 {[%emt 0:01:00]} a6 {[%emt 0:02:32]} 4. d4 {[%emt 0:00:59]} cxd4 {[%emt 0:00:31]} 5. Nxd4 {[%emt 0:00:06]} e6 {[%emt 0:01:15]} 6. Be3 {[%emt 0:03:09]} Qc7 {[%emt 0:01:58]} 7. Bd3 {[%emt 0:03:34]} Nf6 {[%emt 0:03:50]} 8. h3 {[%emt 0:04:39]} Bb4 {[%emt 0:06:07]} 9. O-O {[%emt 0:02:28]} Nxd4 {[%emt 0:14:45]} 10. Bxd4 {[%emt 0:00:14]} Bc5 {[%emt 0:00:22]} 11. Bxc5 {[%emt 0:08:13]} 1/2-1/2

[Event "WTCC-50 2018"]
[Site "Radebeul"]
[Date "2018.07.11"]
[Round "5"]
[White "Kargoll, Peter"]
[Black "Findlay, Ian T"]
[Result "0-1"]
[ECO "A46"]
[WhiteElo "2176"]
[BlackElo "2244"]
[Annotator "ChessBase"]
[PlyCount "98"]
[EventDate "2018.07.07"]
[EventType "team-tourn"]
[EventCountry "GER"]
[SourceTitle "playchess.com"]
[Source "ChessBase"]
[SourceQuality "1"]
[TimeControl "40/5400+30:1800+30"]

1. d4 {[%emt 0:00:00]} Nf6 {[%emt 0:00:00]} 2. Nf3 {[%emt 0:00:00]} d5 {[%emt 0:00:31]} 3. c3 {[%emt 0:06:10]} g6 {[%emt 0:12:58]} 4. Bf4 {[%emt 0:00:58]} Bg7 {[%emt 0:00:10]} 5. e3 {[%emt 0:06:46]} Nbd7 {[%emt 0:04:40]} 6. Be2 {[%emt 0:05:17]} O-O {[%emt 0:02:41]} 7. Ne5 {[%emt 0:08:45]} c6 {[%emt 0:04:14]} 8. Nd2 {[%emt 0:01:46]} Ne4 {[%emt 0:09:43]} 9. Nxd7 {[%emt 0:05:25]} Bxd7 {[%emt 0:03:35]} 10. Nxe4 {[%emt 0:02:07]} dxe4 {[%emt 0:00:03]} 11. Qc2 {[%emt 0:00:49]} Bf5 {[%emt 0:00:26]} 12. g4 {[%emt 0:07:27]} Be6 {[%emt 0:00:31]} 13. Rg1 {[%emt 0:00:34]} Qd5 {[%emt 0:07:25]} 14. b3 {[%emt 0:10:17]} b5 {[%emt 0:00:13]} 15. Rd1 {[%emt 0:00:58]} Rad8 {[%emt 0:05:52]} 16. h4 {[%emt 0:13:04]} h6 {[%emt 0:03:24]} 17. f3 {[%emt 0:07:31]} exf3 {[%emt 0:03:58]} 18. e4 {[%emt 0:00:18]} fxe2 {[%emt 0:00:20]} 19. exd5 {[%emt 0:00:22]} exd1=Q+ {[%emt 0:00:08]} 20. Qxd1 {[%emt 0:06:32]} Rxd5 {[%emt 0:00:11]} 21. b4 {[%emt 0:01:42]} Ra8 {[%emt 0:00:51]} 22. Qc1 {[%emt 0:05:06]} a5 {[%emt 0:02:00]} 23. bxa5 {[%emt 0:01:01]} Rxa5 {[%emt 0:00:10]} 24. a3 {[%emt 0:00:05]} c5 {[%emt 0:03:47]} 25. dxc5 {[%emt 0:01:12]} Rxc5 {[%emt 0:00:43]} 26. Rg3 {[%emt 0:00:13]} Kh7 {[%emt 0:01:17]} 27. h5 {[%emt 0:00:33]} g5 {[%emt 0:03:53]} 28. Qb1+ {[%emt 0:00:16]} Kg8 {[%emt 0:04:00]} 29. Bd2 {[%emt 0:01:22]} Ra4 {[%emt 0:03:17]} 30. Rd3 {[%emt 0:01:51]} Rxg4 {[%emt 0:07:25]} 31. Rd8+ {[%emt 0:00:33]} Bf8 {[%emt 0:00:02]} 32. Rxf8+ {[%emt 0:02:37]} Kxf8 {[%emt 0:00:02]} 33. Qh7 {[%emt 0:00:08]} Ke8 {[%emt 0:00:44]} 34. Qxh6 {[%emt 0:01:17]} Re5+ {[%emt 0:00:26]} 35. Kf2 {[%emt 0:00:28]} Rf5+ {[%emt 0:00:44]} 36. Ke3 {[%emt 0:00:10]} Bd5 {[%emt 0:01:51]} 37. Qb6 {[%emt 0:02:36]} Rf3+ {[%emt 0:04:59]} 38. Ke2 {[%emt 0:00:05]} Rg2+ {[%emt 0:00:07]} 39. Ke1 {[%emt 0:00:34]} Rh3 {[%emt 0:04:57]} 40. Qb8+ {[%emt 0:01:22]} Kd7 {[%emt 0:00:01]} 41. Qxb5+ {[%emt 0:30:08]} Ke6 {[%emt 0:31:38]} 42. Qa6+ {[%emt 0:02:02]} Ke5 {[%emt 0:03:10]} 43. Qf1 {[%emt 0:00:00]} Bf3 {[%emt 0:00:00]} 44. Qb5+ {[%emt 0:00:00]} Kf6 {[%emt 0:00:00]} 45. Bxg5+ {[%emt 0:00:00]} Rxg5 {[%emt 0:00:00]} 46. Qb6+ {[%emt 0:00:00]} Kg7 {[%emt 0:00:00]} 47. Qd4+ {[%emt 0:00:00]} f6 {[%emt 0:00:00]} 48. h6+ {[%emt 0:00:00]} Kf7 {[%emt 0:00:00]} 49. Qc4+ {[%emt 0:00:00]} Bd5 {[%emt 0:00:00]} 0-1

[Event "WTCC-50 2018"]
[Site "Radebeul"]
[Date "2018.07.11"]
[Round "5"]
[White "Sirotkina, Nina"]
[Black "Bowmer, Kevin"]
[Result "1-0"]
[ECO "A48"]
[WhiteElo "2175"]
[BlackElo "2039"]
[Annotator "NA"]
[PlyCount "61"]
[EventDate "2018.07.07"]
[EventType "team-tourn"]
[EventCountry "GER"]
[SourceTitle "playchess.com"]
[Source "ChessBase"]
[SourceQuality "1"]
[TimeControl "40/5400+30:1800+30"]

1. d4 {[%emt 0:00:00]} Nf6 {[%emt 0:00:00]} 2. Nf3 {[%emt 0:00:54]} g6 {[%emt 0:00:00]} 3. Bg5 {[%emt 0:00:43]} Bg7 {[%emt 0:00:44]} 4. Nbd2 {[%emt 0:01:59]} h6 {[%emt 0:03:47]} 5. Bh4 {[%emt 0:03:25]} d6 {[%emt 0:02:43]} 6. c3 {[%emt 0:08:00]} Nbd7 {[%emt 0:03:18]} 7. e4 {[%emt 0:01:25]} g5 {[%emt 0:09:55]} 8. Bg3 {[%emt 0:00:43]} Nh5 {[%emt 0:02:06]} 9. Be2 {[%emt 0:05:12]} e6 {[%emt 0:09:57]} 10. O-O {[%emt 0:12:24]} O-O {[%emt 0:04:04]} 11. Ne1 {[%emt 0:06:00]} Nxg3 {[%emt 0:03:19]} 12. hxg3 {[%emt 0:02:39]} c5 {[%emt 0:11:49]} 13. dxc5 {[%emt 0:06:18]} dxc5 {[%emt 0:03:13]} 14. Nc4 {[%emt 0:01:36]} Nf6 {[%emt 0:06:27]} 15. Qc2 {[%emt 0:01:58]} Qc7 {[%emt 0:04:13]} 16. Rd1 {[%emt 0:01:08]} Bd7 {[%emt 0:01:58]} 17. e5 {[%emt 0:16:22]} Nd5 {[%emt 0:01:43]} 18. Qe4 {[%emt 0:02:01]} Bc6 {[%emt 0:08:28]} 19. Bd3 {[%emt 0:02:23]} Rfd8 {[%emt 0:01:59]} 20. f4 {[%emt 0:13:45]} g4 {[%emt 0:09:47]} 21. Qh7+ {[%emt 0:02:46]} Kf8 {[%emt 0:00:10]} 22. f5 {[%emt 0:00:53]} exf5 {[%emt 0:02:33]} 23. Rxf5 {[%emt 0:01:56]} Bd7 {[%emt 0:02:19]} 24. Rxf7+ {[%emt 0:02:43]} Kxf7 {[%emt 0:00:16]} 25. Nd6+ {[%emt 0:00:29]} Kf8 {[%emt 0:01:54]} 26. Nc2 {[%emt 0:00:21]} Be8 {[%emt 0:02:18]} 27. Rf1+ {[%emt 0:01:03]} Bf7 {[%emt 0:00:50]} 28. Nxf7 {[%emt 0:01:29]} Qxf7 {[%emt 0:00:53]} 29. Rxf7+ {[%emt 0:00:16]} Kxf7 {[%emt 0:00:04]} 30. Qg6+ {[%emt 0:00:44]} Kf8 {[%emt 0:00:18]} 31. e6 {[%emt 0:00:28]} 1-0

[Event "WTCC-50 2018"]
[Site "Radebeul"]
[Date "2018.07.11"]
[Round "5"]
[White "Jhunjhnuwala, Naresh"]
[Black "Denk, Adolf"]
[Result "1/2-1/2"]
[ECO "B50"]
[WhiteElo "2164"]
[BlackElo "2262"]
[Annotator "NA"]
[PlyCount "88"]
[EventDate "2018.07.07"]
[EventType "team-tourn"]
[EventCountry "GER"]
[SourceTitle "playchess.com"]
[Source "ChessBase"]
[SourceQuality "1"]
[TimeControl "40/5400+30:1800+30"]

1. e4 {[%emt 0:00:00]} c5 {[%emt 0:00:00]} 2. Nf3 {[%emt 0:00:00]} d6 {[%emt 0:00:00]} 3. c3 {[%emt 0:00:02]} Nf6 {[%emt 0:01:39]} 4. h3 {[%emt 0:06:40]} g6 {[%emt 0:01:35]} 5. Qc2 {[%emt 0:01:24]} Bg7 {[%emt 0:00:16]} 6. Bc4 {[%emt 0:05:00]} O-O {[%emt 0:00:38]} 7. O-O {[%emt 0:00:09]} Nc6 {[%emt 0:02:52]} 8. Re1 {[%emt 0:00:59]} Rb8 {[%emt 0:04:33]} 9. b3 {[%emt 0:07:01]} b5 {[%emt 0:06:29]} 10. Bf1 {[%emt 0:00:23]} Ne8 {[%emt 0:06:37]} 11. Bb2 {[%emt 0:02:32]} e5 {[%emt 0:03:45]} 12. d3 {[%emt 0:08:49]} Nc7 {[%emt 0:03:08]} 13. Nbd2 {[%emt 0:03:03]} Ne6 {[%emt 0:01:47]} 14. g3 {[%emt 0:01:44]} f5 {[%emt 0:12:11]} 15. exf5 {[%emt 0:03:53]} gxf5 {[%emt 0:01:25]} 16. Bg2 {[%emt 0:01:08]} Bd7 {[%emt 0:05:52]} 17. Rad1 {[%emt 0:01:52]} Qf6 {[%emt 0:02:55]} 18. Nf1 {[%emt 0:05:21]} b4 {[%emt 0:07:04]} 19. Ne3 {[%emt 0:04:18]} bxc3 {[%emt 0:01:06]} 20. Bxc3 {[%emt 0:02:07]} Rfc8 {[%emt 0:07:18]} 21. Qb2 {[%emt 0:04:28]} Kh8 {[%emt 0:07:01]} 22. Nc4 {[%emt 0:04:03]} Qf8 {[%emt 0:01:27]} 23. Re2 {[%emt 0:05:03]} Ncd4 {[%emt 0:01:36]} 24. Bxd4 {[%emt 0:07:10]} cxd4 {[%emt 0:01:13]} 25. Qa3 {[%emt 0:01:06]} e4 {[%emt 0:04:57]} 26. Ne1 {[%emt 0:01:48]} d5 {[%emt 0:01:06]} 27. Qxf8+ {[%emt 0:01:43]} Nxf8 {[%emt 0:01:48]} 28. Na3 {[%emt 0:05:19]} Ne6 {[%emt 0:01:16]} 29. f3 {[%emt 0:00:36]} Nc5 {[%emt 0:04:34]} 30. fxe4 {[%emt 0:02:43]} fxe4 {[%emt 0:00:24]} 31. dxe4 {[%emt 0:01:28]} dxe4 {[%emt 0:00:24]} 32. Bxe4 {[%emt 0:00:21]} Bxh3 {[%emt 0:02:52]} 33. Bf3 {[%emt 0:00:22]} Bf5 {[%emt 0:00:17]} 34. Nc4 {[%emt 0:00:46]} Rc7 {[%emt 0:01:19]} 35. Ne5 {[%emt 0:02:22]} Rd8 {[%emt 0:02:36]} 36. Nc6 {[%emt 0:00:25]} Rxc6 {[%emt 0:01:25]} 37. Bxc6 {[%emt 0:00:02]} d3 {[%emt 0:00:36]} 38. Re8+ {[%emt 0:01:38]} Rxe8 {[%emt 0:00:12]} 39. Bxe8 {[%emt 0:00:02]} Bd4+ {[%emt 0:00:24]} 40. Kg2 {[%emt 0:03:20]} Bc3 {[%emt 0:01:37]} 41. Bb5 {[%emt 0:32:39]} d2 {[%emt 0:06:18]} 42. Nf3 {[%emt 0:00:00]} Bc2 {[%emt 0:01:22]} 43. Rxd2 {[%emt 0:00:00]} Bxd2 {[%emt 0:00:16]} 44. Nxd2 {[%emt 0:00:00]} Kg7 {[%emt 0:00:20]} 1/2-1/2

[Event "WTCC-50 2018"]
[Site "Radebeul"]
[Date "2018.07.11"]
[Round "5"]
[White "Wuttke, Hans"]
[Black "Yermolinsky, Alex"]
[Result "0-1"]
[ECO "A09"]
[WhiteElo "2160"]
[BlackElo "2505"]
[Annotator "ChessBase"]
[PlyCount "68"]
[EventDate "2018.07.07"]
[EventType "team-tourn"]
[EventCountry "GER"]
[SourceTitle "playchess.com"]
[Source "ChessBase"]
[SourceQuality "1"]
[TimeControl "40/5400+30:1800+30"]

1. Nf3 {[%emt 0:00:00]} d5 {[%emt 0:00:19]} 2. c4 {[%emt 0:00:00]} d4 {[%emt 0:00:33]} 3. b4 {[%emt 0:00:13]} g6 {[%emt 0:03:44]} 4. Bb2 {[%emt 0:03:11]} Bg7 {[%emt 0:00:05]} 5. g3 {[%emt 0:03:24]} e5 {[%emt 0:11:41]} 6. d3 {[%emt 0:00:42]} Nh6 {[%emt 0:03:07]} 7. Bg2 {[%emt 0:00:46]} O-O {[%emt 0:00:06]} 8. O-O {[%emt 0:00:23]} Nd7 {[%emt 0:02:01]} 9. Nbd2 {[%emt 0:03:03]} Re8 {[%emt 0:00:23]} 10. Nb3 {[%emt 0:06:24]} Nf5 {[%emt 0:02:16]} 11. Re1 {[%emt 0:01:44]} Nf6 {[%emt 0:02:02]} 12. Nfd2 {[%emt 0:04:26]} h5 {[%emt 0:05:22]} 13. Ne4 {[%emt 0:08:52]} h4 {[%emt 0:03:13]} 14. Nxf6+ {[%emt 0:04:23]} Qxf6 {[%emt 0:06:57]} 15. Nc5 {[%emt 0:01:33]} Nd6 {[%emt 0:06:08]} 16. Qd2 {[%emt 0:06:43]} Kh7 {[%emt 0:04:31]} 17. Bc1 {[%emt 0:03:25]} Rb8 {[%emt 0:02:05]} 18. Qg5 {[%emt 0:02:36]} h3 {[%emt 0:01:48]} 19. Bh1 {[%emt 0:02:39]} Qxg5 {[%emt 0:02:20]} 20. Bxg5 {[%emt 0:00:05]} f5 {[%emt 0:00:21]} 21. Rac1 {[%emt 0:09:24]} b6 {[%emt 0:07:44]} 22. Nb3 {[%emt 0:00:08]} Bb7 {[%emt 0:00:07]} 23. c5 {[%emt 0:04:56]} Nb5 {[%emt 0:00:34]} 24. c6 {[%emt 0:02:10]} Bc8 {[%emt 0:00:57]} 25. Nd2 {[%emt 0:06:46]} Be6 {[%emt 0:00:53]} 26. Rc2 {[%emt 0:05:20]} Nc3 {[%emt 0:02:57]} 27. Kf1 {[%emt 0:00:14]} Nxa2 {[%emt 0:06:24]} 28. Rb2 {[%emt 0:05:45]} Nc3 {[%emt 0:05:08]} 29. Ra1 {[%emt 0:04:01]} Ra8 {[%emt 0:00:07]} 30. b5 {[%emt 0:01:06]} a5 {[%emt 0:04:34]} 31. bxa6 {[%emt 0:00:42]} Ra7 {[%emt 0:00:04]} 32. f4 {[%emt 0:04:08]} Rea8 {[%emt 0:08:24]} 33. fxe5 {[%emt 0:00:39]} Rxa6 {[%emt 0:00:05]} 34. Rxa6 {[%emt 0:00:23]} Rxa6 {[%emt 0:00:04]} 0-1

[Event "WTCC-50 2018"]
[Site "Radebeul"]
[Date "2018.07.11"]
[Round "5"]
[White "Limpert, Michael"]
[Black "Chan, Peng Kong"]
[Result "0-1"]
[ECO "B40"]
[WhiteElo "2159"]
[BlackElo "2158"]
[Annotator "NA"]
[PlyCount "143"]
[EventDate "2018.07.07"]
[EventType "team-tourn"]
[EventCountry "GER"]
[SourceTitle "playchess.com"]
[Source "ChessBase"]
[SourceQuality "1"]
[TimeControl "40/5400+30:1800+30"]

1. e4 {[%emt 0:00:00]} c5 {[%emt 0:00:10]} 2. Nf3 {[%emt 0:00:00]} e6 {[%emt 0:00:36]} 3. b3 {[%emt 0:00:00]} b6 {[%emt 0:00:46]} 4. Bb2 {[%emt 0:00:11]} Bb7 {[%emt 0:00:05]} 5. Bd3 {[%emt 0:08:18] B40: Sicilian: 2...e6, Unusual lines} Nc6 {[%emt 0:01:35]} 6. c3 {[%emt 0:04:19]} (6. a3 Nf6 7. O-O d6 8. Re1 Be7 9. Bf1 O-O 10. d3 Nd7 11. Nbd2 Bf6 12. Bxf6 Nxf6 {1-0 (29) Kasimdzhanov,R (2683)-Ganguly,S (2650) Riadh 2017}) 6... Nf6 {[%emt 0:01:48]} 7. O-O {[%emt 0:02:37]} Be7 {[%emt 0:03:14]} 8. Bc2 $146 {[%emt 0:03:58]} ({Predecessor:} 8. Re1 e5 9. Bf1 O-O 10. Na3 d6 11. d4 cxd4 12. cxd4 exd4 13. Nxd4 {0-1 (26) Kerigan,D (2343)-Lemmers,O (2373) Belgium 2015}) 8... d5 {[%emt 0:03:24]} 9. d3 {[%emt 0:06:38]} O-O {[%emt 0:12:41]} 10. Nbd2 {[%emt 0:07:05]} Qc7 {[%emt 0:02:42]} 11. Qe2 {[%emt 0:04:45]} Rad8 {[%emt 0:06:36]} 12. Rad1 {[%emt 0:09:34]} Rfe8 {[%emt 0:06:42]} 13. h3 {[%emt 0:10:36]} d4 {[%emt 0:10:47]} 14. c4 {[%emt 0:07:01]} e5 {[%emt 0:02:04]} 15. Nh2 {[%emt 0:00:30]} Bc8 {[%emt 0:00:30]} 16. Rfe1 {[%emt 0:06:48]} Bf8 {[%emt 0:05:32]} 17. Ndf1 {[%emt 0:00:25]} g6 {[%emt 0:00:30]} 18. Bc1 {[%emt 0:00:33]} h6 {[%emt 0:04:35]} 19. Ng4 {[%emt 0:02:51]} Nxg4 {[%emt 0:00:09]} 20. hxg4 {[%emt 0:00:02]} Qe7 {[%emt 0:02:37]} 21. g3 {[%emt 0:00:32]} Bg7 {[%emt 0:00:28]} 22. Nh2 {[%emt 0:02:37]} Kh7 {[%emt 0:05:25]} 23. Kg2 {[%emt 0:00:36]} Rh8 {[%emt 0:02:34]} 24. Rh1 {[%emt 0:02:17]} Rde8 {[%emt 0:01:16]} 25. Rdg1 {[%emt 0:00:41]} Kg8 {[%emt 0:01:53]} 26. Nf1 {[%emt 0:01:21]} Nb4 {[%emt 0:00:55]} 27. Bd1 {[%emt 0:03:23]} Bd7 {[%emt 0:01:56]} 28. Rh2 {[%emt 0:01:09]} f6 {[%emt 0:02:38]} 29. Rgh1 {[%emt 0:03:44]} g5 {[%emt 0:00:20]} 30. f4 {[%emt 0:03:24]} Rf8 {[%emt 0:00:57]} 31. f5 {[%emt 0:01:30]} Ra8 {[%emt 0:00:44]} 32. Kg1 {[%emt 0:00:39]} Kh7 {[%emt 0:01:17]} 33. a3 {[%emt 0:02:14]} Nc6 {[%emt 0:00:02]} 34. Qa2 {[%emt 0:01:34]} a6 {[%emt 0:00:49]} 35. Rb2 {[%emt 0:00:21]} Rhb8 {[%emt 0:00:19]} 36. Rhh2 {[%emt 0:00:16]} Be8 {[%emt 0:00:42]} 37. Rb1 {[%emt 0:03:37]} Bf8 {[%emt 0:00:16]} 38. Rhb2 {[%emt 0:00:27]} b5 {[%emt 0:06:10]} 39. Bd2 {[%emt 0:00:19]} Bf7 {[%emt 0:01:07]} 40. Be1 {[%emt 0:00:37]} Qc7 {[%emt 0:00:45]} 41. Be2 {[%emt 0:31:49]} Bd6 {[%emt 0:32:29]} 42. Qa1 {[%emt 0:00:00]} Ra7 {[%emt 0:00:00]} 43. Bd2 {[%emt 0:00:00]} Rab7 {[%emt 0:00:00]} 44. Bc1 {[%emt 0:00:00]} Rb6 {[%emt 0:00:00]} 45. Bd1 {[%emt 0:00:00]} R8b7 {[%emt 0:00:00]} 46. Kg2 {[%emt 0:00:00]} Qb8 {[%emt 0:00:00]} 47. Nd2 {[%emt 0:00:00]} Kg7 {[%emt 0:00:00]} 48. Be2 {[%emt 0:00:00]} Bf8 {[%emt 0:00:00]} 49. Kg1 {[%emt 0:00:00]} Be7 {[%emt 0:00:00]} 50. Kg2 {[%emt 0:00:00]} Qd6 {[%emt 0:00:00]} 51. Bd1 {[%emt 0:02:34]} Rb8 {[%emt 0:00:00]} 52. Kg1 {[%emt 0:00:42]} R6b7 {[%emt 0:00:00]} 53. Nf1 {[%emt 0:00:29]} Bd8 {[%emt 0:00:00]} 54. Bd2 {[%emt 0:00:45]} Qe7 {[%emt 0:00:00]} 55. Kg2 {[%emt 0:00:19]} Qf8 {[%emt 0:00:00]} 56. Kg1 {[%emt 0:00:36]} Qd6 {[%emt 0:00:00]} 57. Be1 {[%emt 0:00:48]} Rb6 {[%emt 0:01:45]} 58. Bd2 {[%emt 0:00:40]} R8b7 {[%emt 0:00:08]} 59. Bc1 {[%emt 0:00:39]} bxc4 {[%emt 0:00:45]} 60. bxc4 {[%emt 0:00:13]} Qb8 {[%emt 0:00:23]} 61. Rxb6 {[%emt 0:01:22]} Rxb6 {[%emt 0:00:14]} 62. Rxb6 {[%emt 0:00:12]} Qxb6 {[%emt 0:00:14]} 63. Qb2 {[%emt 0:00:11]} Qxb2 {[%emt 0:02:22]} 64. Bxb2 {[%emt 0:00:01]} Ba5 {[%emt 0:00:07]} 65. Kf2 {[%emt 0:01:08]} Kf8 {[%emt 0:00:13]} 66. Bf3 {[%emt 0:01:19]} Ke7 {[%emt 0:00:57]} 67. Ke2 {[%emt 0:00:15]} Be8 {[%emt 0:00:55]} 68. Kd1 {[%emt 0:00:26]} Nb8 {[%emt 0:00:19]} 69. Nd2 {[%emt 0:00:30]} Kd6 {[%emt 0:00:55]} 70. Kc1 {[%emt 0:00:10]} Nd7 {[%emt 0:02:32]} 71. Bd1 {[%emt 0:02:12]} Nb6 $15 {[%emt 0:00:00]} 72. Nf1 0-1